bitfinex/quotes_ETHUSD_20230403
["timestamp","ask_amount","ask_price","bid_price","bid_amount"]
[1680555608912,0.2812,1778.1,1777.9,0.1]
[1680555609202,7.669763,1778.2,1777.9,0.1]
[1680555609386,10.43578518,1778.2,1777.9,0.1]
[1680555610301,16.31978518,1778.2,1777.9,0.1]
[1680555610664,8.65002218,1778.1,1777.9,0.1]
[1680555610900,0.022763,1778.0,1777.9,0.1]
[1680555611608,13.59799518,1778.0,1777.9,0.1]
[1680555611791,5.884,1777.5,1777.1,0.006]
[1680555612105,5.884,1777.5,1777.0,0.009]
[1680555612106,8.65302218,1777.5,1777.0,0.007]
[1680555612274,3.0,1777.4,1777.0,0.007]
[1680555613501,11.93133218,1777.4,1777.0,0.007]
[1680555613704,11.93433218,1777.4,1777.0,0.007]
[1680555614091,8.64302218,1777.3,1777.0,0.007]
[1680555614387,6.72806,1777.1,1777.0,0.007]
[1680555614577,8.93437218,1777.1,1777.0,0.007]
[1680555614922,11.65302218,1777.1,1777.0,0.007]
[1680555615502,11.65302218,1777.1,1776.8,0.007]
[1680555615710,3.0,1777.0,1776.8,0.007]
[1680555615940,8.65302218,1777.1,1776.8,0.007]
[1680555615941,0.003,1777.1,1776.8,0.007]
[1680555616098,8.65002218,1777.1,1776.8,0.007]
[1680555616303,8.65302218,1777.1,1776.8,0.007]
[1680555616635,8.65002218,1777.0,1776.8,0.007]
[1680555616815,8.65302218,1777.0,1776.8,0.007]
[1680555617231,5.887,1777.0,1776.8,0.007]
[1680555617388,0.003,1777.0,1776.8,0.007]
[1680555617588,8.909763,1777.2,1776.8,0.007]
[1680555617908,116.0,1777.1,1776.8,0.2884]
[1680555618259,2.76602218,1776.9,1776.6,1.5234071]
[1680555618596,3.28141,1776.8,1776.6,1.5234071]
[1680555618789,2.76602218,1776.7,1776.6,1.5234071]
[1680555619039,2.78878518,1776.7,1776.6,1.5234071]
[1680555619381,54.78878518,1776.7,1776.6,1.5234071]
[1680555619584,54.79178518,1776.7,1776.6,1.5234071]
[1680555619921,54.79178518,1776.7,1776.4,0.04308547]
[1680555619922,69.56488518,1776.7,1776.4,0.04308547]
[1680555620123,13.29402218,1776.5,1776.4,0.04308547]
[1680555620286,13.29402218,1776.5,1775.3,0.624]
[1680555620287,2.76602218,1775.5,1775.3,0.624]
[1680555620529,2.76602218,1775.5,1774.8,1.5977842]
[1680555620530,2.76602218,1775.5,1774.9,0.004]
[1680555620845,2.76602218,1775.5,1774.9,0.16017842]
[1680555621110,2.76602218,1775.5,1774.8,1.5977842]
[1680555621111,2.77302218,1775.5,1774.8,1.5977842]
[1680555621459,0.56377674,1775.5,1775.1,1.0]
[1680555621736,0.007,1775.7,1775.2,1.46895]
[1680555622037,0.007,1775.9,1775.2,1.46895]
[1680555622190,0.022763,1775.8,1775.4,0.28161]
[1680555622523,0.007,1775.9,1775.4,1.0]
[1680555622842,0.007,1776.2,1775.5,0.79481]
[1680555623019,2.76602218,1776.2,1775.5,0.79481]
[1680555623195,7.77302218,1776.2,1775.5,0.974291]
[1680555623401,2.76602218,1776.1,1775.4,1.28162]
[1680555623613,2.77302218,1776.1,1775.3,0.146895]
[1680555623814,39.0,1776.0,1775.3,0.146895]
[1680555624026,2.76602218,1775.9,1775.1,0.28967]
[1680555624333,2.76602218,1775.9,1775.1,1.0]
[1680555624334,5.76602218,1775.9,1775.1,1.0]
[1680555624543,5.0,1775.7,1775.0,5.1047]
[1680555624745,5.0,1775.7,1775.0,0.006]
[1680555624746,2.76602218,1775.6,1775.0,0.006]
[1680555624892,3.003,1775.7,1775.0,0.28168]
[1680555625096,46.0,1775.7,1775.2,1.0]
[1680555625330,0.01,1775.7,1775.2,1.28164]
[1680555625536,24.01,1775.8,1775.2,1.28164]
[1680555625718,24.003,1775.8,1775.2,1.28164]
[1680555626037,0.022763,1775.7,1775.0,1.372178]
[1680555626369,0.022763,1775.7,1775.0,0.084508]
[1680555626510,0.022763,1775.7,1774.8,2.2277842]
[1680555626701,0.022763,1775.7,1774.8,1.8794942]
[1680555626702,3.07036518,1775.7,1774.8,1.8794942]
[1680555626895,2.78878518,1775.7,1774.8,1.8794942]
[1680555627094,3.63351518,1775.7,1774.8,3.48551362]
[1680555627332,7.76602218,1775.6,1774.8,3.48551362]
[1680555627532,0.022763,1775.5,1774.8,3.77322362]
[1680555627718,0.022763,1775.5,1774.8,3.48551362]
[1680555628121,7.77702218,1775.4,1774.8,1.5977842]
[1680555628405,0.252763,1775.3,1774.8,1.5977842]
[1680555628547,2.76602218,1775.2,1774.8,1.5977842]
[1680555629046,2.78878518,1775.1,1774.8,1.5977842]
[1680555630080,2.76602218,1775.0,1774.8,1.5977842]
[1680555630218,2.76602218,1775.0,1774.8,1.8794942]
[1680555630459,12.41802218,1774.9,1774.8,1.5977842]
[1680555630674,24.63713218,1774.9,1774.8,0.45127548]
[1680555630964,24.63713218,1774.9,1773.8,0.102]
[1680555630965,24.63713218,1774.9,1773.9,0.106]
[1680555630966,0.28178,1774.5,1773.9,0.106]
[1680555631175,5.2818,1774.3,1773.9,0.1]
[1680555631370,2.76602218,1774.2,1773.9,0.1]
[1680555631540,2.76602218,1774.2,1773.1,1.0]
[1680555631541,4.652,1774.0,1773.1,1.0]
[1680555631720,4.65,1773.8,1773.2,0.1]
[1680555632023,7.58702217,1773.7,1773.0,1.5977842]
[1680555632254,2.39402217,1773.7,1773.0,1.85756262]
[1680555632516,4.652,1774.0,1773.7,0.1]
[1680555632517,0.28186,1774.0,1773.7,0.1]
[1680555632769,1.87202219,1773.9,1773.7,0.1]
[1680555632938,4.87202219,1773.9,1773.7,0.1]
[1680555633141,9.52402219,1773.9,1773.7,0.1]
[1680555633414,23.0,1773.8,1773.7,0.1]
[1680555633584,30.76602218,1773.8,1773.7,0.1]
[1680555633736,36.04778518,1773.8,1773.7,0.1]
[1680555633991,36.04578518,1773.8,1773.7,0.1]
[1680555634180,36.66080139,1773.8,1773.7,0.1]
[1680555634354,36.66080139,1773.8,1773.0,1.5977842]
[1680555634355,33.79178518,1773.8,1773.0,1.4477842]
[1680555634551,30.79178518,1773.8,1773.0,1.60816262]
[1680555634753,30.79178518,1773.8,1773.1,0.04808509]
[1680555634754,7.79178518,1773.8,1773.1,0.04808509]
[1680555635362,4.652,1773.3,1773.1,0.04808509]
[1680555635590,0.022763,1773.2,1773.1,0.04808509]
[1680555636009,0.022763,1773.2,1773.0,1.4477842]
[1680555636010,6.930763,1773.2,1773.0,1.4477842]
[1680555636195,13.96602218,1773.1,1773.0,1.4477842]
[1680555636493,10.76602218,1773.1,1772.4,0.002]
[1680555636695,2.78878518,1773.0,1772.4,0.002]
[1680555637202,3.0,1772.9,1772.4,0.002]
[1680555637502,0.003,1773.0,1772.4,0.002]
[1680555637651,9.652,1773.0,1772.4,0.002]
[1680555637888,5.0,1772.7,1772.4,0.002]
[1680555638053,2.76602218,1772.6,1772.4,0.002]
[1680555638297,0.68051743,1772.3,1771.6,0.31948257]
[1680555638541,0.68051743,1772.3,1771.5,0.36948257]
[1680555638542,4.652,1772.2,1771.5,0.36948257]
[1680555638809,2.77302218,1772.2,1771.5,0.05]
[1680555638953,7.42302218,1772.2,1771.5,0.05]
[1680555639153,8.74135753,1772.2,1771.3,0.03006411]
[1680555639468,8.74135753,1772.2,1771.4,0.24713136]
[1680555640013,1.32533535,1772.2,1771.7,0.061]
[1680555640162,1.32533535,1772.2,1771.7,0.3432]
[1680555640163,0.56246671,1772.2,1771.7,0.3432]
[1680555640528,0.56246671,1772.2,1771.3,0.4399803]
[1680555640529,0.75286864,1772.2,1771.9,0.1]
[1680555640667,9.644,1772.2,1771.9,0.1]
[1680555640885,5.75286864,1772.0,1771.9,0.1]
[1680555641229,5.75286864,1772.0,1771.2,1.57784831]
[1680555641230,0.75286864,1771.8,1771.2,1.57784831]
[1680555641437,0.74948664,1771.8,1771.3,0.15778483]
[1680555641570,0.74948664,1771.7,1771.3,0.05778483]
[1680555641756,0.74948664,1771.7,1771.2,1.57784831]
[1680555641757,0.74948664,1771.5,1771.2,1.57784831]
[1680555642078,0.007,1771.7,1771.2,1.57784831]
[1680555642308,1.32203142,1772.3,1771.2,1.57784831]
[1680555642309,0.57254478,1772.3,1771.2,1.93713831]
[1680555642606,1.81915722,1772.5,1771.6,0.25051336]
[1680555642607,0.13757845,1772.5,1771.6,0.25051336]
[1680555642781,0.13757845,1772.5,1771.8,0.28218]
[1680555642997,0.74948664,1772.8,1771.8,0.28218]
[1680555643502,0.74948664,1772.8,1771.9,0.624]
[1680555643806,0.022763,1772.7,1772.0,0.28215]
[1680555643971,0.74948664,1772.6,1772.0,0.28215]
[1680555644179,0.74948664,1772.6,1772.0,0.3668]
[1680555644716,0.74948664,1772.6,1772.0,0.28215]
[1680555644870,0.74948664,1772.6,1771.9,0.006]
[1680555645077,0.74948664,1772.6,1772.0,0.28216]
[1680555645278,0.74948664,1772.4,1771.9,0.006]
[1680555645492,0.003,1772.7,1771.9,1.13998557]
[1680555645660,0.74948664,1772.4,1771.9,1.41614557]
[1680555645857,0.003,1772.8,1772.0,0.42376456]
[1680555646160,0.74948664,1772.9,1772.0,0.67427792]
[1680555646558,0.003,1773.2,1772.6,0.28206]
[1680555646672,18.8178,1773.4,1772.6,0.28206]
[1680555646866,18.8298,1773.4,1772.9,0.075]
[1680555647108,18.8298,1773.4,1773.1,0.28198]
[1680555647309,18.8298,1773.4,1773.1,4.93398]
[1680555647507,18.8298,1773.4,1773.2,0.624]
[1680555647738,18.8298,1773.4,1773.3,0.84588]
[1680555647879,18.8298,1773.4,1773.3,0.992868]
[1680555648090,18.8298,1773.4,1773.3,5.89738636]
[1680555648091,11.47733248,1773.4,1773.3,5.89738636]
[1680555648296,0.003,1773.5,1773.4,0.842257]
[1680555648624,0.003,1773.6,1773.4,6.439787]
[1680555648777,0.003,1773.6,1773.5,4.652]
[1680555648966,0.003,1773.6,1773.4,6.518787]
[1680555648967,0.003,1773.6,1773.4,0.079]
[1680555649213,0.003,1773.6,1773.1,3.0]
[1680555649421,0.003,1773.6,1773.0,11.259]
[1680555649422,0.74748164,1773.7,1773.0,0.008]
[1680555649576,0.74748164,1773.5,1772.3,11.257]
[1680555649771,0.74748164,1773.4,1772.6,0.28205]
[1680555649989,3.01248164,1773.6,1772.6,0.28205]
[1680555650319,3.01248164,1773.6,1772.6,0.990669]
[1680555650320,0.75648164,1773.6,1772.6,0.990669]
[1680555650524,0.003,1773.7,1773.0,0.282]
[1680555650701,0.74748164,1773.7,1773.0,0.282]
[1680555650876,0.009,1773.9,1773.3,1.97366]
[1680555651072,0.74748164,1774.1,1773.3,1.97366]
[1680555651273,0.74748164,1774.1,1773.6,0.28191]
[1680555651670,0.009,1774.3,1773.7,0.697]
[1680555651905,0.74748164,1774.1,1773.8,0.84562]
[1680555652086,0.8222298,1774.1,1774.0,0.073]
[1680555652327,0.8222298,1774.1,1773.3,1.12981]
[1680555652328,0.74748164,1773.4,1773.3,0.002]
[1680555652466,5.002,1773.7,1772.8,0.624]
[1680555652669,5.002,1773.7,1772.9,0.3444]
[1680555652670,0.511,1773.7,1772.9,0.3444]
[1680555652923,0.74748164,1773.2,1772.9,0.282]
[1680555653220,0.74748164,1773.2,1773.0,0.076]
[1680555653767,0.67024464,1773.1,1772.5,10.5466]
[1680555654121,5.0,1773.4,1772.5,0.008]
[1680555654122,0.67024464,1772.6,1772.5,0.008]
[1680555654332,0.67024464,1772.6,1772.2,0.006]
[1680555654506,0.67024464,1772.3,1772.1,0.008]
[1680555654694,0.67024464,1772.1,1771.9,0.1]
[1680555656224,3.43626682,1772.1,1771.9,0.1]
[1680555656529,8.43626682,1772.1,1771.9,0.1]
[1680555656729,0.67224464,1772.1,1771.9,0.1]
[1680555656878,0.67024464,1772.1,1771.9,0.1]
[1680555657073,0.67024464,1772.1,1771.9,0.38218]
[1680555657323,0.002,1772.8,1771.9,0.476836]
[1680555657541,5.0,1772.9,1772.2,0.074]
[1680555657821,5.0,1772.9,1772.2,0.35612]
[1680555657822,5.002,1772.9,1772.2,0.35612]
[1680555657970,5.6022,1772.9,1772.2,0.28212]
[1680555658176,5.0,1772.2,1771.9,0.106]
[1680555658378,5.0,1772.1,1771.9,0.1]
[1680555658577,5.002,1772.1,1771.9,0.1]
[1680555659435,0.5,1772.0,1771.9,0.1]
[1680555659736,5.0,1771.8,1771.2,1.57784831]
[1680555659921,0.002,1771.8,1771.2,1.58384831]
[1680555660128,3.28217,1772.0,1771.3,0.15838483]
[1680555660330,5.0,1771.9,1771.3,0.15838483]
[1680555660631,5.0,1771.7,1771.2,1.57784831]
[1680555660867,5.0,1771.5,1771.2,1.57784831]
[1680555661178,0.002,1771.5,1771.2,1.57784831]
[1680555661440,2.258,1771.7,1771.2,1.57784831]
[1680555661740,0.002,1772.0,1771.3,0.15778483]
[1680555661913,5.0,1771.8,1771.3,0.46284424]
[1680555662074,5.0,1771.8,1771.2,1.57784831]
[1680555662075,2.76602218,1771.7,1771.2,1.57784831]
[1680555662272,5.0,1771.7,1771.2,1.57784831]
[1680555662477,2.76602218,1771.3,1771.2,1.57784831]
[1680555662909,1.90386343,1771.3,1771.2,1.57784831]
[1680555664821,5.002,1771.5,1771.2,1.57784831]
[1680555665007,2.76602218,1771.4,1771.2,1.57784831]
[1680555665329,0.58667043,1771.7,1771.2,1.73563314]
[1680555665623,10.0,1771.9,1771.2,1.73563314]
[1680555665624,10.002,1771.9,1771.2,1.73563314]
[1680555665973,10.002,1771.9,1771.3,2.78881159]
[1680555665974,0.002,1771.9,1771.3,2.78881159]
[1680555666132,0.2,1772.2,1771.4,0.56112116]
[1680555666420,1.92262159,1772.2,1771.4,0.56112116]
[1680555666647,0.2,1772.2,1771.5,0.02278684]
[1680555666819,0.2,1772.2,1771.3,0.006]
[1680555666820,5.0,1772.1,1771.3,0.006]
[1680555667016,5.0,1772.1,1771.3,0.17416331]
[1680555667017,0.002,1772.1,1771.3,0.17416331]
[1680555667220,5.202,1772.2,1771.4,0.02278812]
[1680555667703,9.846,1772.2,1771.4,0.02278812]
[1680555667888,5.0,1771.7,1771.3,0.17416331]
[1680555668230,5.002,1771.7,1771.3,0.17416331]
[1680555668402,2.76602218,1771.6,1771.3,0.17416331]
[1680555668585,5.002,1771.7,1771.3,0.17416331]
[1680555668810,5.002,1771.7,1771.3,0.15778483]
[1680555668991,5.011,1771.7,1771.4,0.02278812]
[1680555669206,0.011,1771.7,1771.4,0.02278812]
[1680555669408,0.009,1772.1,1771.5,0.32024]
[1680555669732,0.209,1772.2,1771.5,0.28224]
[1680555669931,2.97502218,1772.2,1771.5,0.28224]
[1680555670245,0.209,1772.2,1771.6,2.76602218]
[1680555670553,0.209,1772.2,1771.7,0.55880222]
[1680555670554,0.009,1772.2,1771.7,0.55880222]
[1680555670696,0.009,1772.6,1771.7,3.9488244]
[1680555670900,0.009,1772.7,1771.9,1.037]
[1680555671099,0.009,1772.9,1772.1,0.84642]
[1680555671348,0.009,1772.9,1772.1,3.61246218]
[1680555671548,0.009,1772.9,1772.1,4.23646218]
[1680555672048,2.76602218,1772.8,1772.1,0.84644]
[1680555672346,0.13939113,1773.0,1771.9,0.002]
[1680555672347,5.0,1772.3,1771.9,0.002]
[1680555672499,7.76602218,1772.2,1771.6,0.28821]
[1680555672696,7.76802218,1772.2,1771.6,0.085268]
[1680555672923,2.76602218,1772.1,1771.4,0.57051]
[1680555673126,5.0,1772.0,1771.4,0.006]
[1680555673327,2.76602218,1771.9,1771.2,1.52248163]
[1680555673499,2.76602218,1771.9,1771.3,0.15224816]
[1680555673700,5.002,1772.0,1771.3,0.43451816]
[1680555673902,5.002,1772.0,1771.3,3.20054034]
[1680555674358,5.002,1772.0,1771.4,2.7888103]
[1680555674568,0.002,1772.0,1771.5,3.89159321]
[1680555674771,0.009,1772.5,1771.7,0.038]
[1680555675096,7.41602218,1772.5,1771.7,0.038]
[1680555675203,5.0,1772.1,1771.5,0.28223]
[1680555675421,5.0,1772.1,1771.3,0.15224816]
[1680555675422,5.0,1771.9,1771.3,0.15224816]
[1680555675649,5.0,1771.6,1771.3,0.15224816]
[1680555675819,2.76602218,1771.5,1771.2,1.52248163]
[1680555676520,7.76602218,1771.5,1771.2,1.52248163]
[1680555676736,7.76802218,1771.5,1771.2,1.52248163]
[1680555677115,2.76802218,1771.5,1771.2,1.52248163]
[1680555677469,0.002,1771.6,1771.2,1.95700979]
[1680555677796,0.002,1772.4,1771.7,1.97547]
[1680555677962,0.008,1772.7,1771.9,0.84651]
[1680555678256,0.008,1772.7,1772.0,0.04]
[1680555678570,0.008,1772.7,1772.0,0.32215]
[1680555678571,5.0,1772.7,1772.0,0.32215]
[1680555678753,5.002,1772.7,1772.0,0.3449304]
[1680555678960,4.652,1772.6,1772.0,0.04]
[1680555679104,4.652,1772.6,1771.6,0.006]
[1680555679105,4.644,1772.4,1771.6,0.006]
[1680555679307,4.9261,1772.4,1771.9,0.451165]
[1680555679802,0.56618,1772.5,1771.9,0.451165]
[1680555679803,4.93216,1772.1,1771.9,0.451165]
[1680555680204,5.0,1772.0,1771.9,0.451165]
[1680555680424,6.497376,1772.0,1771.9,0.451165]
[1680555680654,15.381376,1772.0,1771.3,0.006]
[1680555680968,5.0,1771.4,1771.2,1.52248163]
[1680555681170,3.84682,1771.3,1771.2,1.52248163]
[1680555681775,9.96082,1771.3,1771.2,8.163e-05]
[1680555681934,9.96082,1771.3,1770.8,0.1]
[1680555681935,5.0,1770.9,1770.8,0.1]
[1680555682267,3.202,1770.9,1770.8,0.1]
[1680555682449,5.2,1770.9,1770.8,0.1]
[1680555682655,6.00954,1770.9,1770.8,0.02527195]
[1680555682990,6.00954,1770.9,1770.4,0.02101132]
[1680555682991,6.88854,1770.9,1770.4,0.02101132]
[1680555683122,6.88854,1770.9,1770.2,0.398222]
[1680555683123,5.2824,1770.5,1770.2,0.398222]
[1680555683342,5.002,1770.5,1770.2,0.36923332]
[1680555683817,10.886,1770.5,1770.2,0.36923332]
[1680555684340,5.884,1770.4,1770.2,0.36923332]
[1680555684540,5.886,1770.4,1770.2,0.36923332]
[1680555684910,2.76602218,1770.3,1770.2,0.17735489]
[1680555685107,8.65002218,1770.3,1770.2,0.17735489]
[1680555685263,8.65202218,1770.3,1770.2,1e-08]
[1680555685467,8.65202218,1770.3,1770.1,0.38245]
[1680555685668,2.76602218,1770.2,1770.0,0.13997075]
[1680555686021,5.5,1770.0,1769.4,0.5310311]
[1680555686216,2.76602218,1769.5,1769.4,0.5290311]
[1680555686535,0.68945828,1770.3,1769.4,0.5290311]
[1680555686536,0.57794874,1770.5,1769.4,1.5290311]
[1680555686668,0.57794874,1770.5,1769.8,1.0]
[1680555687064,0.57794874,1770.5,1769.8,1.28251]
[1680555687309,0.57794874,1770.5,1769.8,0.87034873]
[1680555687518,2.76602218,1770.4,1769.8,0.28251]
[1680555687688,2.76602218,1770.4,1769.8,0.5290311]
[1680555688011,5.0,1769.9,1769.8,0.5290311]
[1680555688240,0.009,1769.9,1769.8,0.5290311]
[1680555688400,2.76602218,1769.9,1769.8,0.5290311]
[1680555688611,7.76602218,1769.9,1769.8,0.5290311]
[1680555688780,8.33402695,1769.9,1769.8,0.5290311]
[1680555688977,0.56800477,1769.9,1769.8,0.5290311]
[1680555689212,5.0,1770.1,1769.8,0.5290311]
[1680555689213,0.008,1770.1,1769.8,0.5290311]
[1680555689509,5.0,1769.9,1769.8,0.5290311]
[1680555689726,7.77402218,1769.9,1769.8,0.5290311]
[1680555689860,10.77402218,1769.9,1769.8,0.5290311]
[1680555690374,8.57767205,1769.9,1769.8,0.5290311]
[1680555691311,8.006,1769.9,1769.8,3.11e-05]
[1680555691483,9.96396721,1769.9,1769.8,3.11e-05]
[1680555692013,8.202,1769.9,1769.8,3.11e-05]
[1680555692161,5.202,1769.9,1769.8,3.11e-05]
[1680555692394,0.002,1769.9,1769.8,3.11e-05]
[1680555692592,5.0,1770.0,1769.8,3.11e-05]
[1680555692885,5.002,1770.0,1769.8,3.11e-05]
[1680555693419,0.002,1770.0,1769.8,3.11e-05]
[1680555693583,5.0,1770.6,1769.8,3.11e-05]
[1680555693926,5.002,1770.6,1769.9,0.30529744]
[1680555694081,5.002,1770.6,1769.9,1.30529744]
[1680555694452,0.002,1770.6,1770.0,0.41299974]
[1680555694570,5.0,1770.7,1770.0,0.41299974]
[1680555694571,5.002,1770.7,1770.0,0.41299974]
[1680555694770,5.002,1770.7,1770.1,0.02280486]
[1680555695034,5.0,1770.4,1770.0,0.13052974]
[1680555695316,0.002,1770.4,1770.0,0.28248]
[1680555695521,5.0,1770.3,1770.0,0.28248]
[1680555695713,5.002,1770.3,1770.0,0.28248]
[1680555695900,5.002,1770.3,1769.9,0.41681914]
[1680555696081,5.002,1770.3,1769.9,0.69929914]
[1680555696283,5.002,1770.3,1770.0,0.06992991]
[1680555696284,10.886,1770.3,1770.0,0.06992991]
[1680555696519,5.002,1770.3,1769.8,1.632]
[1680555696674,5.0,1770.1,1769.8,0.006]
[1680555696873,5.0,1770.1,1769.7,0.02281001]
[1680555696874,5.0,1769.9,1769.7,0.004]
[1680555697133,5.0,1769.6,1769.3,0.626]
[1680555697311,5.0,1769.4,1769.2,0.006]
[1680555697517,0.002,1769.4,1769.2,0.006]
[1680555697798,5.0,1769.5,1769.2,0.626]
[1680555697982,0.002,1769.5,1769.2,0.526]
[1680555698327,0.002,1769.7,1769.3,0.44472843]
[1680555698532,0.013,1769.7,1769.3,1.18008292]
[1680555698828,0.013,1769.7,1769.3,0.83667292]
[1680555698972,0.013,1769.7,1769.4,0.02281388]
[1680555699181,0.013,1769.7,1769.5,0.28256]
[1680555699372,0.013,1769.7,1769.5,0.42721039]
[1680555699571,0.013,1769.7,1769.5,1.00321039]
[1680555699767,0.013,1769.7,1769.5,0.42721039]
[1680555699976,0.013,1769.7,1769.5,0.28256]
[1680555700207,0.013,1769.7,1769.3,0.55408292]
[1680555700623,0.013,1769.7,1769.5,1.0]
[1680555700823,0.013,1769.7,1769.6,1.28254]
[1680555701033,0.008,1770.8,1770.1,1.0]
[1680555701346,0.006,1770.9,1770.3,1.0]
[1680555701633,0.006,1770.9,1770.4,0.8584]
[1680555701825,0.006,1771.0,1770.5,0.08584]
[1680555701978,0.006,1771.0,1770.5,0.66184]
[1680555702171,0.006,1771.1,1770.6,1.0]
[1680555702421,0.006,1771.6,1771.1,1.0]
[1680555702595,0.006,1771.6,1771.5,1.0]
[1680555702939,0.002,1772.0,1771.5,1.0]
[1680555702940,0.006,1772.0,1771.5,1.0]
[1680555703076,0.006,1772.0,1771.6,0.1]
[1680555703470,0.006,1772.0,1771.6,0.38222]
[1680555703728,0.006,1772.1,1771.7,0.25278427]
[1680555703912,0.006,1772.1,1771.7,1.9998847]
[1680555704090,0.56162201,1772.8,1772.1,1.0]
[1680555704091,0.006,1772.5,1772.1,1.0]
[1680555704314,0.56162201,1772.8,1772.6,1.0]
[1680555704637,0.56162201,1772.8,1772.3,8.0]
[1680555704638,0.58779215,1772.5,1772.3,0.002]
[1680555704832,0.58779215,1772.5,1772.0,0.574]
[1680555705130,0.58779215,1772.5,1772.0,1.28612]
[1680555705477,0.58779215,1772.5,1772.4,1.0]
[1680555705720,0.58779215,1772.5,1772.4,1.2821]
[1680555705951,0.58779215,1772.5,1772.3,1.87887655]
[1680555706227,0.58779215,1772.5,1772.3,1.30487655]
[1680555706382,0.58779215,1772.5,1772.3,1.02277655]
[1680555706581,0.58779215,1772.5,1772.4,0.10227766]
[1680555707055,0.58779215,1772.5,1772.4,0.574]
[1680555707200,0.58779215,1772.5,1771.9,0.002]
[1680555707442,0.86987215,1772.5,1771.7,0.12090043]
[1680555707734,6.0,1772.4,1771.6,10.7974]
[1680555707917,0.008,1772.4,1771.7,0.30498427]
[1680555708119,0.58779215,1772.5,1771.7,0.30498427]
[1680555708120,0.59379215,1772.5,1771.7,0.30498427]
[1680555708292,0.59379215,1772.5,1771.7,0.02278427]
[1680555708539,0.59379215,1772.5,1771.7,0.86941427]
[1680555708836,0.59379215,1772.5,1771.9,0.28216]
[1680555708993,0.59379215,1772.5,1771.9,0.30494168]
[1680555709384,0.59379215,1772.5,1772.0,0.574]
[1680555709630,0.58779215,1772.5,1772.1,0.28214]
[1680555709829,0.58779215,1772.5,1772.1,0.142044]
[1680555710130,0.58779215,1772.5,1772.1,0.424184]
[1680555710349,0.58779215,1772.5,1772.2,0.804]
[1680555710543,0.56162201,1772.8,1772.3,0.84634]
[1680555710693,0.56162201,1772.8,1772.3,1.42034]
[1680555710883,0.56162201,1772.8,1772.4,0.716034]
[1680555711079,0.56162201,1772.8,1772.4,0.998114]
[1680555711339,0.11000001,1772.8,1772.4,0.54436472]
[1680555711496,0.11000001,1772.8,1772.4,0.40233072]
[1680555712225,0.11000001,1772.8,1772.4,2.76602218]
[1680555712823,0.11000001,1772.8,1772.3,0.02277655]
[1680555713026,0.11000001,1772.8,1772.3,2.78879873]
[1680555713206,0.11000001,1772.8,1772.5,0.4002484]
[1680555713420,0.11000001,1772.8,1772.5,3.16627058]
[1680555713611,0.02000002,1772.9,1772.6,2.78879488]
[1680555714384,0.02000002,1772.9,1772.6,3.07085488]
[1680555714579,0.02000002,1772.9,1772.7,0.58912549]
[1680555714799,0.02000002,1772.9,1772.8,2.76602218]
[1680555715231,0.02000002,1772.9,1772.8,3.04805218]
[1680555715429,0.02000002,1772.9,1772.8,3.62205218]
[1680555715629,0.08000003,1773.0,1772.8,3.62205218]
[1680555715842,0.08000003,1773.0,1772.9,3.1282274]
[1680555716213,0.08000003,1773.0,1772.9,4.5482874]
[1680555716355,0.08000003,1773.0,1772.9,4.7782874]
[1680555716661,0.08000003,1773.0,1772.9,4.5482874]
[1680555716949,0.08000003,1773.0,1772.9,10.4322874]
[1680555717250,1.08000003,1773.0,1772.9,0.002]
[1680555717472,1.03942657,1772.8,1772.5,0.4002484]
[1680555717797,1.03942657,1772.8,1772.5,0.6823284]
[1680555718050,1.03942657,1772.8,1772.5,0.75056124]
[1680555719495,0.88942657,1772.8,1772.7,0.84616]
[1680555719725,0.88942657,1772.8,1772.7,3.61218218]
[1680555720045,0.88942657,1772.8,1772.7,3.04807218]
[1680555720331,0.88942657,1772.8,1772.7,3.41255667]
[1680555720533,0.88942657,1772.8,1772.7,2.76602218]
[1680555720760,0.08000003,1773.0,1772.8,0.5]
[1680555720942,0.08000003,1773.0,1772.9,5.76294102]
[1680555721254,0.08000003,1773.0,1772.9,4.76494102]
[1680555721449,0.08000003,1773.0,1772.9,5.33694102]
[1680555721629,0.08000003,1773.0,1772.9,5.87283512]
[1680555721938,0.11000001,1773.2,1772.9,5.14883512]
[1680555722137,0.11000001,1773.2,1773.0,1.14213312]
[1680555722683,1.55786688,1773.0,1772.6,0.002]
[1680555722969,1.55786688,1773.0,1772.5,0.47248124]
[1680555722970,2.71365357,1773.0,1772.5,0.4002484]
[1680555723156,4.0,1772.9,1772.5,0.4002484]
[1680555723477,1.0,1772.5,1772.1,10.6846]
[1680555723628,0.25,1772.5,1772.1,0.006]
[1680555723832,0.25,1772.5,1772.1,0.28214]
[1680555724076,0.25,1772.7,1772.1,0.28214]
[1680555724291,1.56586688,1773.0,1772.1,1.015786]
[1680555724485,1.55786688,1773.0,1772.1,1.015786]
[1680555724648,1.55786688,1773.0,1772.1,1.191786]
[1680555724830,1.55786688,1773.0,1772.2,0.1191786]
[1680555725030,0.25,1772.8,1772.4,0.84629]
[1680555725232,1.55786688,1773.0,1772.4,0.84629]
[1680555725456,1.55786688,1773.0,1772.5,2.76602218]
[1680555725729,1.55786688,1773.0,1772.8,0.8461]
[1680555726082,1.55786688,1773.0,1772.9,3.04804218]
[1680555726322,1.55786688,1773.0,1772.9,4.16957657]
[1680555726639,1.55786688,1773.0,1772.9,0.37153439]
[1680555726932,0.11000001,1773.2,1772.9,0.65355439]
[1680555727137,0.11000001,1773.2,1773.0,2.76602218]
[1680555727446,0.11000001,1773.2,1773.0,3.51602218]
[1680555727646,0.11000001,1773.2,1773.0,3.79802218]
[1680555727888,0.11000001,1773.2,1773.1,2.76602218]
[1680555728067,0.11000001,1773.2,1773.1,3.63475846]